[Event "*** Titled Tuesday Blitz"]
[Site "Chess.com"]
[Date "2019.01.01"]
[Round "5"]
[White "Orest_Vovk"]
[Black "Blitzstream"]
[Result "1-0"]
[WhiteElo "2390"]
[BlackElo "2545"]
[TimeControl "180+2"]
[EndTime "14:08:50 PST"]
[Termination "Orest_Vovk won by checkmate"]

1. g4 {[%clk 0:03:01.9]} 1... h5 {[%clk 0:02:59.7]} 2. g5 {[%clk 0:03:01.1]}
2... h4 {[%clk 0:03:00.5]} 3. g6 {[%clk 0:03:01.1]} 3... fxg6 {[%clk 0:02:59.4]}
4. d4 {[%clk 0:02:59]} 4... Nf6 {[%clk 0:02:59.4]} 5. Qd3 {[%clk 0:02:58.6]}
5... Kf7 {[%clk 0:02:54.3]} 6. Nf3 {[%clk 0:02:58.6]} 6... Rh5 {[%clk
0:02:34.7]} 7. Ne5+ {[%clk 0:02:50.5]} 7... Kg8 {[%clk 0:02:23.2]} 8. Qxg6
{[%clk 0:02:33]} 8... Qe8 {[%clk 0:02:03.5]} 9. Qxe8 {[%clk 0:02:30.4]} 9...
Nxe8 {[%clk 0:02:05.4]} 10. e4 {[%clk 0:02:31.5]} 10... Nf6 {[%clk 0:01:54.9]}
11. Be2 {[%clk 0:02:22.1]} 11... Rh7 {[%clk 0:01:48.1]} 12. Nc3 {[%clk 0:02:22]}
12... Nc6 {[%clk 0:01:47.6]} 13. Be3 {[%clk 0:02:13.9]} 13... d6 {[%clk
0:01:38.2]} 14. Bc4+ {[%clk 0:02:08.8]} 14... e6 {[%clk 0:01:35.9]} 15. Nf3
{[%clk 0:02:08]} 15... Na5 {[%clk 0:01:13.7]} 16. Bd3 {[%clk 0:02:06.7]} 16...
Ng4 {[%clk 0:01:11]} 17. e5 {[%clk 0:01:48]} 17... Rh8 {[%clk 0:00:53.7]} 18.
Bf4 {[%clk 0:01:47.4]} 18... d5 {[%clk 0:00:51.2]} 19. Rg1 {[%clk 0:01:38.3]}
19... Nh6 {[%clk 0:00:51.8]} 20. O-O-O {[%clk 0:01:19.1]} 20... Nf7 {[%clk
0:00:48.4]} 21. Rg6 {[%clk 0:01:11.5]} 21... Nc6 {[%clk 0:00:45]} 22. Nb5 {[%clk
0:00:56.7]} 22... Ne7 {[%clk 0:00:40.7]} 23. Rg2 {[%clk 0:00:49.1]} 23... c6
{[%clk 0:00:41.7]} 24. Nc7 {[%clk 0:00:44]} 24... Rb8 {[%clk 0:00:41.8]} 25. Ne8
{[%clk 0:00:44.7]} 25... Nh6 {[%clk 0:00:26.3]} 26. Nf6+ {[%clk 0:00:43.4]}
26... Kf7 {[%clk 0:00:26.4]} 27. Ng5# {[%clk 0:00:44.4]} 1-0

[Event "*** Titled Tuesday Blitz"]
[Site "Chess.com"]
[Date "2019.01.01"]
[Round "5"]
[White "GMWSO"]
[Black "fmshawnrl123"]
[Result "1-0"]
[WhiteElo "2986"]
[BlackElo "2519"]
[TimeControl "180+2"]
[EndTime "14:08:52 PST"]
[Termination "GMWSO won by resignation"]

1. d4 {[%clk 0:03:01.9]} 1... Nf6 {[%clk 0:02:58.5]} 2. c4 {[%clk 0:03:01.4]}
2... e6 {[%clk 0:02:59.5]} 3. Nc3 {[%clk 0:02:57.6]} 3... Bb4 {[%clk 0:02:59.9]}
4. Nf3 {[%clk 0:02:59.3]} 4... d5 {[%clk 0:03:00.6]} 5. Bg5 {[%clk 0:02:56.7]}
5... h6 {[%clk 0:03:00.9]} 6. Bxf6 {[%clk 0:02:42.9]} 6... Qxf6 {[%clk
0:03:02.8]} 7. Qa4+ {[%clk 0:02:43.2]} 7... Nc6 {[%clk 0:03:04]} 8. cxd5 {[%clk
0:02:44.3]} 8... exd5 {[%clk 0:03:05.9]} 9. e3 {[%clk 0:02:45.3]} 9... O-O
{[%clk 0:03:03.4]} 10. Be2 {[%clk 0:02:46.7]} 10... Be6 {[%clk 0:02:32.3]} 11.
O-O {[%clk 0:02:42.6]} 11... a6 {[%clk 0:02:28.9]} 12. Rfc1 {[%clk 0:02:40.2]}
12... Bd6 {[%clk 0:02:28.9]} 13. Qd1 {[%clk 0:02:36.7]} 13... Rfe8 {[%clk
0:02:24]} 14. Na4 {[%clk 0:02:32.8]} 14... g5 {[%clk 0:02:21.3]} 15. Nc5 {[%clk
0:02:30.1]} 15... Bxc5 {[%clk 0:02:19.1]} 16. Rxc5 {[%clk 0:02:29.2]} 16... Rad8
{[%clk 0:02:19.2]} 17. Bxa6 {[%clk 0:02:24.4]} 17... Bc8 {[%clk 0:02:00.4]} 18.
Bb5 {[%clk 0:02:22.4]} 18... Re4 {[%clk 0:01:55.6]} 19. Bxc6 {[%clk 0:02:21]}
19... bxc6 {[%clk 0:01:57.5]} 20. Ne5 {[%clk 0:02:21]} 20... Rd6 {[%clk
0:01:53.6]} 21. Rac1 {[%clk 0:02:20.8]} 21... g4 {[%clk 0:01:38.6]} 22. Rxc6
{[%clk 0:02:16.2]} 22... Be6 {[%clk 0:01:01.7]} 23. Rxd6 {[%clk 0:02:09.1]}
23... cxd6 {[%clk 0:01:03.6]} 24. Nd3 {[%clk 0:02:10.2]} 24... h5 {[%clk
0:01:02.1]} 25. a4 {[%clk 0:02:10.3]} 25... h4 {[%clk 0:01:02.3]} 26. a5 {[%clk
0:02:03.5]} 26... g3 {[%clk 0:01:03.4]} 27. Qf3 {[%clk 0:02:03.7]} 27... gxh2+
{[%clk 0:01:00.9]} 28. Kxh2 {[%clk 0:02:03.8]} 28... Qd8 {[%clk 0:00:59.7]} 29.
Nf4 {[%clk 0:01:52.6]} 29... Qxa5 {[%clk 0:00:57.7]} 30. Nxe6 {[%clk 0:01:51]}
30... Rxe6 {[%clk 0:00:59.6]} 31. Qg4+ {[%clk 0:01:51.2]} 31... Kf8 {[%clk
0:00:59.7]} 32. Rc8+ {[%clk 0:01:49.1]} 32... Ke7 {[%clk 0:00:59.3]} 33. Qxh4+
{[%clk 0:01:49.8]} 33... Kd7 {[%clk 0:00:59.1]} 34. Rf8 {[%clk 0:01:47.8]} 34...
Qd2 {[%clk 0:00:45.5]} 35. Rxf7+ {[%clk 0:01:43.5]} 35... Kc6 {[%clk 0:00:46.9]}
36. Qh7 {[%clk 0:01:42]} 36... Kb5 {[%clk 0:00:33.3]} 37. Rf5 {[%clk 0:01:36.1]}
37... Kc4 {[%clk 0:00:29.2]} 38. Qc7+ {[%clk 0:01:37]} 38... Kd3 {[%clk
0:00:30.4]} 39. Qc3+ {[%clk 0:01:37.9]} 39... Qxc3 {[%clk 0:00:28.7]} 40. bxc3
{[%clk 0:01:39.8]} 40... Ke2 {[%clk 0:00:30.1]} 41. g3 {[%clk 0:01:39.3]} 41...
Kf1 {[%clk 0:00:26.7]} 42. g4 {[%clk 0:01:40.6]} 1-0

[Event "*** Titled Tuesday Blitz"]
[Site "Chess.com"]
[Date "2019.01.01"]
[Round "5"]
[White "pandamaster3000"]
[Black "JoakimVonAnd"]
[Result "1/2-1/2"]
[WhiteElo "2211"]
[BlackElo "2335"]
[TimeControl "180+2"]
[EndTime "14:08:54 PST"]
[Termination "Game drawn by repetition"]

1. e4 {[%clk 0:03:01.9]} 1... c6 {[%clk 0:03:00.8]} 2. d4 {[%clk 0:03:02.4]}
2... d5 {[%clk 0:03:02.7]} 3. exd5 {[%clk 0:03:03.5]} 3... cxd5 {[%clk
0:03:03.8]} 4. Bd3 {[%clk 0:03:05]} 4... Nf6 {[%clk 0:03:04.6]} 5. c3 {[%clk
0:03:06.2]} 5... Nc6 {[%clk 0:03:05.2]} 6. Bf4 {[%clk 0:03:07.1]} 6... Bg4
{[%clk 0:03:06.4]} 7. Qb3 {[%clk 0:03:08.3]} 7... Qd7 {[%clk 0:03:07.7]} 8. Nd2
{[%clk 0:03:09.5]} 8... e6 {[%clk 0:03:09.1]} 9. Ngf3 {[%clk 0:03:10.8]} 9...
Bd6 {[%clk 0:03:09.9]} 10. Bxd6 {[%clk 0:03:09.9]} 10... Qxd6 {[%clk 0:03:08.9]}
11. O-O {[%clk 0:03:11.3]} 11... O-O {[%clk 0:03:10]} 12. Rae1 {[%clk
0:03:12.7]} 12... Bh5 {[%clk 0:03:10.2]} 13. Ne5 {[%clk 0:03:13.4]} 13... Rab8
{[%clk 0:03:11.5]} 14. f4 {[%clk 0:03:14.2]} 14... Bg6 {[%clk 0:03:12.7]} 15.
Qc2 {[%clk 0:02:57.5]} 15... Rfc8 {[%clk 0:02:59.4]} 16. Qb1 {[%clk 0:02:53.9]}
16... b5 {[%clk 0:03:00.5]} 17. f5 {[%clk 0:02:54.8]} 17... exf5 {[%clk
0:03:01.1]} 18. Bxf5 {[%clk 0:02:56.7]} 18... b4 {[%clk 0:03:02.2]} 19. Nxg6
{[%clk 0:02:21.7]} 19... hxg6 {[%clk 0:03:02.6]} 20. Bxc8 {[%clk 0:02:22.7]}
20... bxc3 {[%clk 0:03:03.7]} 21. Nb3 {[%clk 0:02:15.8]} 21... Rxc8 {[%clk
0:02:58.8]} 22. bxc3 {[%clk 0:02:17]} 22... Ne4 {[%clk 0:02:59.9]} 23. Rxe4
{[%clk 0:02:13.1]} 23... dxe4 {[%clk 0:03:00.2]} 24. Qxe4 {[%clk 0:02:15]} 24...
Ne7 {[%clk 0:02:59.2]} 25. Nc5 {[%clk 0:02:09.5]} 25... Nf5 {[%clk 0:02:58.4]}
26. Qb7 {[%clk 0:01:49.8]} 26... Rc7 {[%clk 0:02:40.6]} 27. Qa8+ {[%clk
0:01:42.6]} 27... Kh7 {[%clk 0:02:39.3]} 28. Qe4 {[%clk 0:01:38.1]} 28... Re7
{[%clk 0:02:24.9]} 29. Qd3 {[%clk 0:01:35.2]} 29... Qd5 {[%clk 0:02:18.7]} 30.
Qh3+ {[%clk 0:01:29.4]} 30... Kg8 {[%clk 0:02:19]} 31. Rb1 {[%clk 0:01:22.4]}
31... Re8 {[%clk 0:02:13.4]} 32. Qf3 {[%clk 0:01:10.2]} 32... Qxa2 {[%clk
0:02:10.4]} 33. Rf1 {[%clk 0:01:10.3]} 33... Re3 {[%clk 0:01:54.7]} 34. Qa8+
{[%clk 0:01:03.1]} 34... Kh7 {[%clk 0:01:55.6]} 35. Ne4 {[%clk 0:00:56.4]} 35...
f6 {[%clk 0:01:39.2]} 36. Qb7 {[%clk 0:00:57.3]} 36... Kh6 {[%clk 0:01:34.4]}
37. Qa8 {[%clk 0:00:37.1]} 37... Kh7 {[%clk 0:01:31.9]} 38. Qb7 {[%clk
0:00:38.2]} 38... Kh6 {[%clk 0:01:28.7]} 39. Qa8 {[%clk 0:00:39.3]} 39... Kh7
{[%clk 0:01:29.9]} 40. Qb7 {[%clk 0:00:40.3]} 40... Kh6 {[%clk 0:01:31.3]}
1/2-1/2

[Event "*** Titled Tuesday Blitz"]
[Site "Chess.com"]
[Date "2019.01.01"]
[Round "5"]
[White "minnesotachessmaster"]
[Black "BillForster"]
[Result "1-0"]
[WhiteElo "1934"]
[BlackElo "1705"]
[TimeControl "180+2"]
[EndTime "14:09:10 PST"]
[Termination "minnesotachessmaster won on time"]

1. e4 {[%clk 0:03:01.9]} 1... c5 {[%clk 0:02:59.8]} 2. Nf3 {[%clk 0:03:02.6]}
2... a6 {[%clk 0:03:00]} 3. d4 {[%clk 0:03:03.1]} 3... cxd4 {[%clk 0:03:00.9]}
4. c3 {[%clk 0:03:04.3]} 4... dxc3 {[%clk 0:02:20.9]} 5. Nxc3 {[%clk 0:03:05.1]}
5... Nc6 {[%clk 0:02:18.4]} 6. Bc4 {[%clk 0:03:05.3]} 6... e6 {[%clk 0:02:17.2]}
7. O-O {[%clk 0:03:05.9]} 7... d6 {[%clk 0:02:09.8]} 8. Qe2 {[%clk 0:03:07]}
8... Be7 {[%clk 0:02:09]} 9. Rd1 {[%clk 0:03:07.6]} 9... Nf6 {[%clk 0:02:05.1]}
10. e5 {[%clk 0:03:05]} 10... Nd5 {[%clk 0:01:42.8]} 11. exd6 {[%clk 0:02:33.3]}
11... Nxc3 {[%clk 0:01:36.5]} 12. bxc3 {[%clk 0:02:31]} 12... Bf6 {[%clk
0:01:21.6]} 13. Bf4 {[%clk 0:02:17.3]} 13... O-O {[%clk 0:01:11.9]} 14. Ne5
{[%clk 0:02:09.4]} 14... Nxe5 {[%clk 0:01:05]} 15. Bxe5 {[%clk 0:02:09.9]} 15...
Bd7 {[%clk 0:01:02.1]} 16. Rd4 {[%clk 0:02:06.6]} 16... Rc8 {[%clk 0:00:50]} 17.
Rc1 {[%clk 0:01:57.4]} 17... Bc6 {[%clk 0:00:43.8]} 18. Bd3 {[%clk 0:01:53]}
18... Bxe5 {[%clk 0:00:31.2]} 19. Qxe5 {[%clk 0:01:53.2]} 19... Qf6 {[%clk
0:00:27.9]} 20. Qe3 {[%clk 0:01:40.2]} 20... Rfd8 {[%clk 0:00:25.7]} 21. c4
{[%clk 0:01:36.3]} 21... e5 {[%clk 0:00:18.9]} 22. Qh3 {[%clk 0:01:18.4]} 22...
g6 {[%clk 0:00:04.6]} 23. Rh4 {[%clk 0:01:13.5]} 23... Bd7 {[%clk 0:00:03.9]}
24. Qe3 {[%clk 0:01:07.2]} 24... Qxd6 {[%clk 0:00:04.5]} 25. Bf1 {[%clk
0:01:00.9]} 25... f5 {[%clk 0:00:05.2]} 26. Qh6 {[%clk 0:01:00.6]} 26... Qe7
{[%clk 0:00:04.8]} 27. c5 {[%clk 0:01:01.1]} 27... Qg7 {[%clk 0:00:03.7]} 28.
Bc4+ {[%clk 0:00:59.3]} 28... Kh8 {[%clk 0:00:03.8]} 29. Qg5 {[%clk 0:00:58.8]}
1-0

[Event "*** Titled Tuesday Blitz"]
[Site "Chess.com"]
[Date "2019.01.01"]
[Round "5"]
[White "belisarius64"]
[Black "ehrenfeld"]
[Result "0-1"]
[WhiteElo "2536"]
[BlackElo "2442"]
[TimeControl "180+2"]
[EndTime "14:09:11 PST"]
[Termination "ehrenfeld won by resignation"]

1. c4 {[%clk 0:03:01.9]} 1... e5 {[%clk 0:03:00.3]} 2. Nc3 {[%clk 0:03:01.9]}
2... d6 {[%clk 0:03:01.3]} 3. Nf3 {[%clk 0:03:02.6]} 3... f5 {[%clk 0:03:02.5]}
4. d4 {[%clk 0:02:58.1]} 4... e4 {[%clk 0:03:03]} 5. Nd2 {[%clk 0:02:59.1]} 5...
Nf6 {[%clk 0:03:03.5]} 6. e3 {[%clk 0:03:00]} 6... g6 {[%clk 0:03:01.2]} 7. f3
{[%clk 0:02:58.8]} 7... exf3 {[%clk 0:03:01.4]} 8. Qxf3 {[%clk 0:02:59.8]} 8...
Bg7 {[%clk 0:03:02]} 9. Bd3 {[%clk 0:03:01.4]} 9... O-O {[%clk 0:03:02.6]} 10.
O-O {[%clk 0:03:03.1]} 10... Nc6 {[%clk 0:03:03.3]} 11. a3 {[%clk 0:02:58]}
11... Bd7 {[%clk 0:03:03.1]} 12. b4 {[%clk 0:02:58.8]} 12... a6 {[%clk
0:02:53.3]} 13. Re1 {[%clk 0:02:53.2]} 13... Rb8 {[%clk 0:02:52.1]} 14. Nf1
{[%clk 0:02:53.8]} 14... f4 {[%clk 0:02:43.4]} 15. Ne2 {[%clk 0:02:13.6]} 15...
fxe3 {[%clk 0:02:36.5]} 16. Bxe3 {[%clk 0:01:49.5]} 16... Ng4 {[%clk 0:01:41.1]}
17. Qd5+ {[%clk 0:01:48.9]} 17... Kh8 {[%clk 0:01:42.1]} 18. Bg5 {[%clk
0:01:50.4]} 18... Bf6 {[%clk 0:01:16.2]} 19. Bxf6+ {[%clk 0:01:47.4]} 19... Qxf6
{[%clk 0:01:15]} 20. Nfg3 {[%clk 0:01:43.4]} 20... Qf2+ {[%clk 0:00:53.9]} 21.
Kh1 {[%clk 0:01:43.5]} 21... Ne3 {[%clk 0:00:40.8]} 22. Qe4 {[%clk 0:01:26]}
22... Rbe8 {[%clk 0:00:37.9]} 23. d5 {[%clk 0:01:23.7]} 23... Rxe4 {[%clk
0:00:35.5]} 24. Bxe4 {[%clk 0:01:25.6]} 24... Ne5 {[%clk 0:00:29.2]} 25. Nd4
{[%clk 0:01:27.2]} 25... Qf4 {[%clk 0:00:18.2]} 26. Ne6 {[%clk 0:01:24.4]} 26...
Bxe6 {[%clk 0:00:18.4]} 27. dxe6 {[%clk 0:01:26.3]} 27... N3g4 {[%clk 0:00:14]}
28. Bxb7 {[%clk 0:01:23.5]} 28... Nxh2 {[%clk 0:00:08.6]} 29. Kxh2 {[%clk
0:01:18.9]} 29... Qh4+ {[%clk 0:00:08.8]} 30. Kg1 {[%clk 0:01:20.5]} 30... Ng4
{[%clk 0:00:08.8]} 31. Bf3 {[%clk 0:01:13.6]} 31... Qxg3 {[%clk 0:00:08.3]} 32.
e7 {[%clk 0:01:11.8]} 32... Qh2+ {[%clk 0:00:07.7]} 33. Kf1 {[%clk 0:01:12.7]}
33... Rxf3+ {[%clk 0:00:09.2]} 0-1

[Event "*** Titled Tuesday Blitz"]
[Site "Chess.com"]
[Date "2019.01.01"]
[Round "5"]
[White "1e41-0"]
[Black "chedimir"]
[Result "1-0"]
[WhiteElo "2549"]
[BlackElo "2358"]
[TimeControl "180+2"]
[EndTime "14:09:15 PST"]
[Termination "1e41-0 won by resignation"]

1. d4 {[%clk 0:03:01.9]} 1... d5 {[%clk 0:02:38.6]} 2. c4 {[%clk 0:03:02.4]}
2... e6 {[%clk 0:02:39]} 3. Nc3 {[%clk 0:03:03.5]} 3... c5 {[%clk 0:02:39.9]} 4.
cxd5 {[%clk 0:03:03.7]} 4... cxd4 {[%clk 0:02:40.5]} 5. Qxd4 {[%clk 0:03:03.6]}
5... Nc6 {[%clk 0:02:41.9]} 6. Qd1 {[%clk 0:02:58.7]} 6... exd5 {[%clk
0:02:42.8]} 7. Nxd5 {[%clk 0:02:58.6]} 7... Be6 {[%clk 0:02:43.6]} 8. Nc3 {[%clk
0:02:59.2]} 8... Qxd1+ {[%clk 0:02:41.9]} 9. Nxd1 {[%clk 0:02:53.2]} 9... Nd4
{[%clk 0:02:38.5]} 10. Ne3 {[%clk 0:02:53.1]} 10... Bb4+ {[%clk 0:02:29.8]} 11.
Bd2 {[%clk 0:02:52.9]} 11... Bxd2+ {[%clk 0:02:30.3]} 12. Kxd2 {[%clk
0:02:54.8]} 12... O-O-O {[%clk 0:02:30.6]} 13. Ke1 {[%clk 0:02:40.3]} 13... Nf6
{[%clk 0:02:27.5]} 14. Nf3 {[%clk 0:02:39.6]} 14... Kb8 {[%clk 0:02:23.8]} 15.
g3 {[%clk 0:02:29.1]} 15... Nxf3+ {[%clk 0:02:18.3]} 16. exf3 {[%clk 0:02:29.5]}
16... Rd6 {[%clk 0:02:16]} 17. Bc4 {[%clk 0:02:04.8]} 17... Rc8 {[%clk
0:01:59.6]} 18. Bxe6 {[%clk 0:02:02.3]} 18... fxe6 {[%clk 0:01:59.8]} 19. Rd1
{[%clk 0:01:57.6]} 19... Rb6 {[%clk 0:01:57.8]} 20. b3 {[%clk 0:01:55.4]} 20...
Ra6 {[%clk 0:01:57.9]} 21. Ra1 {[%clk 0:01:08.6]} 21... Rc3 {[%clk 0:01:51.1]}
22. Kd2 {[%clk 0:01:05.9]} 22... Rc5 {[%clk 0:01:45]} 23. Rhc1 {[%clk
0:01:01.2]} 23... Rh5 {[%clk 0:01:45]} 24. h4 {[%clk 0:00:59.6]} 24... g5 {[%clk
0:01:45.3]} 25. hxg5 {[%clk 0:01:00.4]} 25... Rxg5 {[%clk 0:01:45]} 26. Ke2
{[%clk 0:01:01.9]} 26... Nd5 {[%clk 0:01:43.8]} 27. f4 {[%clk 0:00:58.5]} 27...
Rh5 {[%clk 0:01:42.8]} 28. Nxd5 {[%clk 0:00:56.5]} 28... exd5 {[%clk 0:01:42.3]}
29. Kf3 {[%clk 0:00:57.4]} 29... d4 {[%clk 0:01:41.9]} 30. Rd1 {[%clk
0:00:58.6]} 30... Rd5 {[%clk 0:01:40.6]} 31. Rd2 {[%clk 0:01:00]} 31... Rdd6
{[%clk 0:01:37.5]} 32. Rad1 {[%clk 0:01:01.1]} 32... Kc7 {[%clk 0:01:38.3]} 33.
g4 {[%clk 0:00:58.2]} 33... b5 {[%clk 0:01:39.1]} 34. g5 {[%clk 0:00:57.3]}
34... Rd5 {[%clk 0:01:35.9]} 35. Ke4 {[%clk 0:00:53.4]} 35... Rd7 {[%clk
0:01:35.9]} 36. f5 {[%clk 0:00:48.2]} 36... Kc6 {[%clk 0:01:32.8]} 37. Rxd4
{[%clk 0:00:39.6]} 37... Rxd4+ {[%clk 0:01:32.8]} 38. Rxd4 {[%clk 0:00:41.5]}
38... Rxa2 {[%clk 0:01:33.5]} 39. f3 {[%clk 0:00:39.4]} 39... Re2+ {[%clk
0:01:32.9]} 40. Kf4 {[%clk 0:00:40.7]} 40... Re8 {[%clk 0:01:32.8]} 41. f6
{[%clk 0:00:41.7]} 41... Kc5 {[%clk 0:01:32.4]} 42. Rd7 {[%clk 0:00:41.9]} 42...
a5 {[%clk 0:01:31.6]} 43. Rxh7 {[%clk 0:00:39.4]} 43... a4 {[%clk 0:01:32.4]}
44. bxa4 {[%clk 0:00:40.6]} 44... bxa4 {[%clk 0:01:32.3]} 45. Ra7 {[%clk
0:00:42]} 45... Kb4 {[%clk 0:01:30.7]} 46. g6 {[%clk 0:00:43.4]} 46... a3 {[%clk
0:01:28.1]} 47. f7 {[%clk 0:00:42.3]} 1-0

[Event "*** Titled Tuesday Blitz"]
[Site "Chess.com"]
[Date "2019.01.01"]
[Round "5"]
[White "Muracle"]
[Black "xpto15"]
[Result "0-1"]
[WhiteElo "2511"]
[BlackElo "2208"]
[TimeControl "180+2"]
[EndTime "14:09:16 PST"]
[Termination "xpto15 won by resignation"]

1. Nf3 {[%clk 0:03:01.9]} 1... Nf6 {[%clk 0:02:55.2]} 2. g3 {[%clk 0:03:02.3]}
2... g6 {[%clk 0:02:55.6]} 3. Bg2 {[%clk 0:03:03.1]} 3... Bg7 {[%clk 0:02:57]}
4. O-O {[%clk 0:03:03.9]} 4... O-O {[%clk 0:02:57.2]} 5. d4 {[%clk 0:03:05]}
5... d6 {[%clk 0:02:54.6]} 6. b3 {[%clk 0:03:05.4]} 6... Nbd7 {[%clk 0:02:50.7]}
7. Bb2 {[%clk 0:03:05.3]} 7... e5 {[%clk 0:02:51.7]} 8. dxe5 {[%clk 0:03:03.9]}
8... Ng4 {[%clk 0:02:53.2]} 9. Nc3 {[%clk 0:02:48.7]} 9... Ngxe5 {[%clk
0:02:48.1]} 10. Nxe5 {[%clk 0:02:49.2]} 10... Nxe5 {[%clk 0:02:39.4]} 11. Qd2
{[%clk 0:02:47.7]} 11... Nd7 {[%clk 0:02:39.8]} 12. Rab1 {[%clk 0:02:46.9]}
12... Re8 {[%clk 0:02:40.3]} 13. Nd5 {[%clk 0:02:46.9]} 13... Bxb2 {[%clk
0:02:40.9]} 14. Rxb2 {[%clk 0:02:48.8]} 14... a5 {[%clk 0:02:40.4]} 15. c4
{[%clk 0:02:49.3]} 15... Nf6 {[%clk 0:02:38.4]} 16. Qc3 {[%clk 0:02:44.9]} 16...
Nxd5 {[%clk 0:02:36.6]} 17. cxd5 {[%clk 0:02:46.8]} 17... Bf5 {[%clk 0:02:35.4]}
18. Rc1 {[%clk 0:02:46.5]} 18... Qe7 {[%clk 0:02:31.5]} 19. a4 {[%clk
0:02:34.1]} 19... h5 {[%clk 0:02:25.8]} 20. h3 {[%clk 0:02:33.6]} 20... Rec8
{[%clk 0:02:24.5]} 21. Kh2 {[%clk 0:02:33.6]} 21... h4 {[%clk 0:02:23.4]} 22. g4
{[%clk 0:02:33.5]} 22... Bd7 {[%clk 0:02:22.5]} 23. f4 {[%clk 0:02:24.9]} 23...
c6 {[%clk 0:02:20.6]} 24. Qd3 {[%clk 0:02:14.8]} 24... cxd5 {[%clk 0:02:17.9]}
25. Rbc2 {[%clk 0:02:14.7]} 25... Rxc2 {[%clk 0:02:16]} 26. Rxc2 {[%clk
0:02:15.3]} 26... Bc6 {[%clk 0:02:17.9]} 27. Bxd5 {[%clk 0:02:10.9]} 27... Bxd5
{[%clk 0:02:16.5]} 28. Qxd5 {[%clk 0:02:12.8]} 28... Re8 {[%clk 0:02:17.1]} 29.
Rd2 {[%clk 0:01:56.1]} 29... Qe3 {[%clk 0:02:12.4]} 30. Qxd6 {[%clk 0:01:46.4]}
30... Qf2+ {[%clk 0:01:53.6]} 31. Kh1 {[%clk 0:01:40.3]} 31... Qe1+ {[%clk
0:01:54.3]} 32. Kg2 {[%clk 0:01:38.2]} 32... Re3 {[%clk 0:01:53.7]} 33. Qd8+
{[%clk 0:01:23.2]} 33... Kh7 {[%clk 0:01:52.7]} 34. Qd4 {[%clk 0:01:16.7]} 34...
Rg3+ {[%clk 0:01:46.9]} 35. Kh2 {[%clk 0:01:17.4]} 35... Rxh3+ {[%clk 0:01:35]}
36. Kg2 {[%clk 0:01:15.3]} 36... Qh1+ {[%clk 0:01:32.4]} 37. Kf2 {[%clk
0:01:16.2]} 37... Rg3 {[%clk 0:01:27.5]} 38. e3 {[%clk 0:01:10.5]} 38... Qg1+
{[%clk 0:01:19.8]} 39. Ke2 {[%clk 0:01:11.3]} 39... Rg2+ {[%clk 0:01:18.7]} 40.
Kd3 {[%clk 0:01:09.7]} 40... h3 {[%clk 0:01:12.2]} 41. Qf6 {[%clk 0:01:06]}
41... Qb1+ {[%clk 0:01:09.9]} 42. Kc4 {[%clk 0:01:05.5]} 42... Qc1+ {[%clk
0:01:07.5]} 43. Kb5 {[%clk 0:00:59.1]} 43... Qc6+ {[%clk 0:01:05.2]} 0-1

[Event "*** Titled Tuesday Blitz"]
[Site "Chess.com"]
[Date "2019.01.01"]
[Round "5"]
[White "Alexander_Moskalenko"]
[Black "ramses135"]
[Result "1-0"]
[WhiteElo "2815"]
[BlackElo "2474"]
[TimeControl "180+2"]
[EndTime "14:09:21 PST"]
[Termination "Alexander_Moskalenko won by resignation"]

1. d4 {[%clk 0:03:00.8]} 1... f5 {[%clk 0:02:53.7]} 2. h3 {[%clk 0:03:01.2]}
2... d5 {[%clk 0:02:40.4]} 3. g4 {[%clk 0:03:01.9]} 3... fxg4 {[%clk 0:02:40.8]}
4. hxg4 {[%clk 0:03:03.8]} 4... Bxg4 {[%clk 0:02:42.2]} 5. Qd3 {[%clk
0:03:04.9]} 5... Nf6 {[%clk 0:02:42.7]} 6. Bh3 {[%clk 0:03:05.9]} 6... Qd7
{[%clk 0:02:43.7]} 7. Bxg4 {[%clk 0:03:06.6]} 7... Qxg4 {[%clk 0:02:45.6]} 8.
Nf3 {[%clk 0:03:05.9]} 8... Nc6 {[%clk 0:02:45.6]} 9. Ne5 {[%clk 0:03:04.3]}
9... Qxd4 {[%clk 0:02:30]} 10. Nxc6 {[%clk 0:02:50.4]} 10... Qxd3 {[%clk
0:02:29.1]} 11. cxd3 {[%clk 0:02:52.3]} 11... bxc6 {[%clk 0:02:30.5]} 12. Nc3
{[%clk 0:02:51.3]} 12... e5 {[%clk 0:02:27]} 13. Bd2 {[%clk 0:02:43.7]} 13...
Bd6 {[%clk 0:02:23.7]} 14. Rc1 {[%clk 0:02:35.2]} 14... Kd7 {[%clk 0:02:24.5]}
15. b3 {[%clk 0:02:36.7]} 15... h6 {[%clk 0:02:11.3]} 16. e4 {[%clk 0:02:32.3]}
16... g5 {[%clk 0:02:09.5]} 17. Ke2 {[%clk 0:02:31.2]} 17... Rag8 {[%clk
0:02:05.2]} 18. Rh2 {[%clk 0:02:26.7]} 18... h5 {[%clk 0:01:57.6]} 19. Rch1
{[%clk 0:02:21.1]} 19... h4 {[%clk 0:01:45.8]} 20. f3 {[%clk 0:02:18.5]} 20...
Nh5 {[%clk 0:01:44.9]} 21. Rg1 {[%clk 0:02:16.4]} 21... Ng3+ {[%clk 0:01:35]}
22. Ke1 {[%clk 0:02:17.2]} 22... Ke6 {[%clk 0:01:34.1]} 23. Ne2 {[%clk
0:02:17.1]} 23... Bc5 {[%clk 0:01:01.9]} 24. Rgg2 {[%clk 0:02:15.6]} 24... Nxe2
{[%clk 0:01:01.5]} 25. Kxe2 {[%clk 0:02:17.5]} 25... Kf6 {[%clk 0:00:55.6]} 26.
Rh1 {[%clk 0:02:18.9]} 26... Rh5 {[%clk 0:00:35.5]} 27. Rc1 {[%clk 0:02:17.3]}
27... Bd6 {[%clk 0:00:27.6]} 28. Rxc6 {[%clk 0:02:17.7]} 28... dxe4 {[%clk
0:00:27.2]} 29. dxe4 {[%clk 0:02:17.8]} 29... h3 {[%clk 0:00:27.4]} 30. Rh2
{[%clk 0:02:18.7]} 30... g4 {[%clk 0:00:28.5]} 31. fxg4 {[%clk 0:02:20.1]} 31...
Rxg4 {[%clk 0:00:30.4]} 32. Kf3 {[%clk 0:02:21.5]} 32... Rg1 {[%clk 0:00:29.4]}
33. Rc1 {[%clk 0:02:16.6]} 33... Rxc1 {[%clk 0:00:28.9]} 34. Bxc1 {[%clk
0:02:18.5]} 34... Bc5 {[%clk 0:00:21]} 35. Kg4 {[%clk 0:02:17.6]} 35... Rh7
{[%clk 0:00:19]} 36. Rxh3 {[%clk 0:02:18.6]} 36... Rxh3 {[%clk 0:00:18.9]} 37.
Kxh3 {[%clk 0:02:20.5]} 37... Bd4 {[%clk 0:00:18.9]} 38. Kg4 {[%clk 0:02:21]}
38... c6 {[%clk 0:00:17.1]} 39. Bg5+ {[%clk 0:02:22.5]} 39... Ke6 {[%clk
0:00:17.1]} 40. Kf3 {[%clk 0:02:21.1]} 40... a6 {[%clk 0:00:18]} 41. Ke2 {[%clk
0:02:22.7]} 41... c5 {[%clk 0:00:14]} 42. Bh6 {[%clk 0:02:22.1]} 42... Kd6
{[%clk 0:00:15.4]} 43. Kf3 {[%clk 0:02:16.8]} 43... Kc6 {[%clk 0:00:13.6]} 44.
a4 {[%clk 0:02:17.5]} 44... c4 {[%clk 0:00:14.3]} 45. b4 {[%clk 0:02:14.9]}
45... Bc3 {[%clk 0:00:10.3]} 46. Bf8 {[%clk 0:02:15.5]} 46... Bd2 {[%clk
0:00:10.8]} 47. Ke2 {[%clk 0:02:16.5]} 47... c3 {[%clk 0:00:12.3]} 48. Kd3
{[%clk 0:02:17.2]} 48... Kb6 {[%clk 0:00:13.3]} 49. Bd6 {[%clk 0:02:15.7]} 49...
Kc6 {[%clk 0:00:10.1]} 50. Bxe5 {[%clk 0:02:16.4]} 50... Be1 {[%clk 0:00:11.6]}
51. Bxc3 {[%clk 0:02:16.6]} 1-0